Workbook

Sheet Schhol_AnnualBudget
B2: Annual Budget for 2010-11
B3: Sl. No. | C3: Item | D3: Unit Cost per month | E3: Qty | F3: INR
B4: 1 | C4: House Rent | D4: 42050 | E4: 1 | F4: =D4*E4 -> 42050
B5: 2 | C5: Teacher’s salary | D5: Principal
D6: 21000 | E6: 1 | F6: =D6*E6 -> 21000
D7: Teachers
D8: 11250 | E8: 4 | F8: 45000
D9: 10250 | E9: 7 | F9: 71750
B11: 3 | C11: Staff including security | D11: (Office Assistant)
D12: 8000 | E12: 1 | F12: 8000
D13: (Mess Supervisor)
D14: 4500 | E14: 1 | F14: 4500
D15: (Driver)
D16: 4000 | E16: 1 | F16: 4000
D17: (Guard)
D18: 2000 | E18: 3 | F18: 6000
D19: (Sweeper)
D20: 2000 | E20: 1 | F20: 2000
B24: 4 | C24: Boarding for 200 students (Including salary of cooks and helpers) | D24: 850 | E24: 200 | F24: 170000
B25: 5 | C25: Electricity, water & telephone | D25: 72 | E25: 200 | F25: 14400
B26: 6 | C26: Clothes, shoes, toiletries, linen etc. | D26: 150 | E26: 200 | F26: 30000
B27: 7 | C27: Medical expenditure including medicine | D27: 50 | E27: 200 | F27: 10000
B28: 8 | C28: Postage books & stationery, writing material, exercise book, printing etc. | D28: 93 | E28: 200 | F28: 18600
B29: 9 | C29: Furniture – Purchase & repairs including bunk-beds, desk-benches etc. | D29: 152 | E29: 200 | F29: 30400
B30: 10 | C30: Computers, electrical items (maintenance, replacement purchase and purchase) | D30: 70 | E30: 200 | F30: 14000
B31: 11 | C31: Miscellaneous (Including routine maintenance of the building, petty expenditure, functions, office contingency increment of staff & faculty etc.) | D31: 11700 | E31: 1 | F31: 11700
C32: Total cost per month | F32: =SUM(F4:F31) -> 503400
C33: Annual Expenditure | F33: =F32*12 -> 6040800
B34: Total: Rs. 5,03,400/- x 12 = Rs. 60,40,800/-
B35: Round off (+) 200/-
B36: ___________
B37: Rs. 60, 41,000/-

Sheet WAH_Proposal_Budget
C2: WAH_Proposal_Expenditure Details
B4: S.No | C4: Item | D4: Unit Cost | E4: Qty | F4: Total Cost
B5: (i) | C5: Construction of temporary accommodation including 5” brick wall, pre-fabricated roof and toilet facilities for 50 children (16ftx25ft: prefabbed roofs, terracotta tiles) | D5: 5000 | E5: 1 | F5: =D5*E5 -> 5000
B6: (ii) | C6: Physics, Chemistry and Biology lab including furniture, instruments and glassware | D6: 2444 | E6: 1 | F6: =D6*E6 -> 2444
B7: (iii) | C7: Computers | D7: =35000/45 -> 777.7777778 | E7: 5 | F7: 3888.888889
B8: (iv) | C8: Laser Printers | D8: =10000/45 -> 222.2222222 | E8: 1 | F8: 222.2222222
B9: (v) | C9: UPS | D9: =2000/45 -> 44.44444444 | E9: 5 | F9: 222.2222222
C10: Total Cost Needed | F10: =SUM(F5:F9) -> 11777.33333
C13: WAH Proposal
C14: Asha for Education has extended significant support to the Shoshit Seva Sangh, which runs a fully free English medium residential school for the poorest of the poor since 2007. This support has indeed been an important element in the expansion of the school since its inception. The school that started with 50 students now has a strength of 250 as on 1st April 2011 is 250 and as in the past the SSS hopes to add at least 50 students from the poorest of the poor musahar community every year.
C16: This school is housed on six floors of two adjacent buildings which have been connected by building bridges on each floor in order to make it into one unit. In fact it was extremely fortuitous to find two almost identical adjacent buildings, though owned by two different landlords. Temporary construction to house 100 more children must be built on the vacant plot of land attached one of the rented buildings.
C18: The school also needs to have laboratories for practical classes in Physics, Chemistry and Biology. This will include acquiring furniture, instruments, glass ware, chemicals and other consumables.
C20: The school has a computer laboratory comprising 20 computers with Uninterrupted Power Supply (UPS) facilities. The computer lab was established in early 2009. 100 more students will be added since then to the school by January 2012 and we need to upgrade the computer lab by adding at least 5 more computers with UPS and at least 1 more printer.
C21: The Shoshit Seva Sangh will be extremely grateful if the Asha Foundation would generate funds for SSS under its WAH programme with a view to provide the necessary funds for all the three facilities mentioned above. The estimated cost is given above –
C24: The total cost adds up to $ 11777. We keep the website of SSS updated and for comprehensive information on SSS members of Asha Foundation can access the website www.sssfoundation.org . The SSS is extremely grateful for the support and encouragement extended to it by Asha Foundation.

Sheet Sheet3
